fUSD/lending_fUSD_20240626
["ID","MTS","AMOUNT","RATE_DAILY","PERIOD"]
[330451352,1719421095339,-1287.11,0.00044109,120]
[330451353,1719421095377,-3583.75,0.00044109,120]
[330451354,1719421095417,-1047.87,0.00044109,120]
[330451355,1719421095456,-502.15331053,0.00044109,120]
[330451356,1719421095497,-500.0,0.00044109,120]
[330451357,1719421095538,-500.0,0.00044109,120]
[330451358,1719421095579,-500.0,0.00044109,120]
[330451359,1719421095625,-500.0,0.00044109,120]
[330451360,1719421095670,-500.0,0.00044109,120]
[330451361,1719421095710,-500.0,0.00044109,120]
[330451362,1719421095756,-1095.38,0.00044109,120]
[330451363,1719421095797,-500.0,0.00044109,120]
[330451364,1719421095837,-2278.03,0.00044109,120]
[330451365,1719421095879,-1440.26,0.00044109,120]
[330451366,1719421095920,-514.94725519,0.00044109,120]
[330451367,1719421095963,-1081.74,0.00044109,120]
[330451368,1719421096004,-1473.46,0.00044109,120]
[330451369,1719421096045,-500.0,0.00044109,120]
[330451370,1719421096086,-934.6,0.00044109,120]
[330451371,1719421096130,-5456.46,0.00044109,120]
[330451372,1719421096172,-2848.24,0.00044109,120]
[330451373,1719421096212,-500.0,0.00044109,120]
[330451374,1719421096252,-2298.22,0.00044109,120]
[330451375,1719421096291,-503.92,0.00044109,120]
[330451376,1719421096331,-3330.24,0.00044109,120]
[330451377,1719421096369,-320.69316839,0.00044109,120]
[330451378,1719421096407,-500.0,0.00044109,120]
[330451379,1719421096449,-2920.71,0.00044109,120]
[330451380,1719421096487,-500.0,0.00044109,120]
[330451381,1719421096527,-500.0,0.00044109,120]
[330451382,1719421096568,-1892.91,0.00044109,120]
[330451383,1719421096608,-558.76,0.00044109,120]
[330451384,1719421096652,-500.0,0.00044109,120]
[330451385,1719421096694,-2673.16,0.00044109,120]
[330451386,1719421096734,-500.0,0.00044109,120]
[330451387,1719421096774,-500.0,0.00044109,120]
[330451388,1719421096814,-500.0,0.00044109,120]
[330451389,1719421096852,-500.0,0.00044109,120]
[330451390,1719421096891,-541.34,0.00044109,120]
[330451391,1719421096930,-1241.16,0.00044109,120]
[330451392,1719421096970,-976.78,0.00044109,120]
[330451393,1719421097009,-3091.38,0.00044109,120]
[330451394,1719421097046,-500.0,0.00044109,120]
[330451395,1719421097501,-1308.38,0.00044109,120]
[330451396,1719421097540,-500.0,0.00044109,120]
[330451397,1719421097579,-500.0,0.00044109,120]
[330451398,1719421097620,-500.0,0.00044109,120]
[330451399,1719421097660,-1650.95,0.00044109,120]
[330451400,1719421097698,-500.0,0.00044109,120]
[330451401,1719421097738,-1766.14,0.00044109,120]
[330451402,1719421097777,-1753.47,0.00044109,120]
[330451403,1719421097815,-524.1,0.00044109,120]
[330451404,1719421097853,-500.0,0.00044109,120]
[330451405,1719421097891,-1019.1,0.00044109,120]
[330451406,1719421097929,-500.0,0.00044109,120]
[330451407,1719421097967,-1822.22,0.00044109,120]
[330451408,1719421098006,-500.0,0.00044109,120]
[330451409,1719421098049,-500.0,0.00044109,120]
[330451410,1719421098088,-500.0,0.00044109,120]
[330451411,1719421098126,-501.03,0.00044109,120]
[330451412,1719421098168,-500.0,0.00044109,120]
[330451413,1719421098205,-2738.53,0.00044109,120]
[330451414,1719421098242,-500.0,0.00044109,120]
[330451415,1719421098279,-1369.42,0.00044109,120]
[330451416,1719421098316,-500.0,0.00044109,120]
[330451417,1719421098353,-500.0,0.00044109,120]
[330451418,1719421098392,-1374.62,0.00044109,120]
[330451419,1719421098430,-500.0,0.00044109,120]
[330451420,1719421098467,-500.0,0.00044109,120]
[330451421,1719421098506,-500.0,0.00044109,120]
[330451422,1719421098545,-1572.25,0.00044109,120]
[330451423,1719421098585,-500.0,0.00044109,120]
[330451424,1719421098626,-1371.19,0.00044109,120]
[330451425,1719421098665,-500.0,0.00044109,120]
[330451426,1719421098703,-5000.0,0.00044109,120]
[330451427,1719421098741,-500.0,0.00044109,120]
[330451428,1719421098780,-2270.17,0.00044109,120]
[330451429,1719421098817,-1362.34,0.00044109,120]
[330451430,1719421098854,-500.0,0.00044109,120]
[330451431,1719421098893,-500.0,0.00044109,120]
[330451432,1719421098932,-500.0,0.00044109,120]
[330451433,1719421098973,-500.0,0.00044109,90]
[330451434,1719421099013,-1709.98,0.00044109,120]
[330451435,1719421099055,-500.0,0.00044109,120]
[330451436,1719421099093,-500.0,0.00044109,120]
[330451437,1719421099129,-458.08538331,0.00044109,120]
[330451438,1719421099168,-599.13,0.00044109,120]
[330451439,1719421099205,-500.0,0.00044109,120]
[330451440,1719421099242,-1715.75,0.00044109,120]
[330451441,1719421099280,-500.0,0.00044109,120]
[330451442,1719421099317,-511.01,0.00044109,120]
[330451443,1719421099356,-500.0,0.00044109,120]
[330451444,1719421099391,-500.0,0.00044109,120]
[330451445,1719421099427,-1271.85,0.00044109,120]
[330451446,1719421099466,-698.3,0.00044109,120]
[330451447,1719421099502,-500.0,0.00044109,120]
[330451448,1719421099538,-280.28917379,0.00044109,120]
[330451449,1719421099574,-684.25,0.00044109,120]
[330451450,1719421099612,-2535.06,0.00044109,120]
[330451451,1719421099649,-878.83,0.00044109,120]
[330451452,1719421099686,-958.16,0.00044109,120]
[330451453,1719421099726,-500.0,0.00044109,120]
[330451454,1719421099765,-500.0,0.00044109,120]
[330451455,1719421099802,-500.0,0.00044109,120]
[330451456,1719421099839,-740.85,0.00044109,120]
[330451457,1719421099876,-2570.79,0.00044109,120]
[330451458,1719421099914,-643.93,0.00044109,120]
[330451459,1719421099952,-1189.32,0.00044109,120]
[330451460,1719421099990,-500.0,0.00044109,120]
[330451461,1719421100027,-4169.94,0.00044109,120]
[330451462,1719421100066,-3755.54,0.00044109,120]
[330451463,1719421100107,-1354.63,0.00044109,120]
[330451464,1719421100146,-500.0,0.00044109,120]
[330451465,1719421100186,-2501.0,0.00044109,120]
[330451466,1719421100224,-935.52,0.00044109,120]
[330451467,1719421100263,-500.0,0.00044109,120]
[330451468,1719421100302,-5621.91,0.00044109,120]
[330451469,1719421100339,-500.0,0.00044109,120]
[330451470,1719421100376,-2627.34,0.00044109,120]
[330451471,1719421100415,-928.4,0.00044109,120]
[330451472,1719421100456,-500.0,0.00044109,120]
[330451473,1719421100494,-451.29272439,0.00044109,120]
[330451474,1719421100535,-546.26,0.00044109,120]
[330451475,1719421100575,-500.0,0.00044109,120]
[330451476,1719421100617,-500.0,0.00044109,120]
[330451477,1719421100657,-500.0,0.00044109,120]
[330451478,1719421100697,-500.0,0.00044109,120]
[330451479,1719421100735,-1217.93,0.00044109,120]
[330451480,1719421100774,-1026.86,0.00044109,120]
[330451481,1719421100813,-500.0,0.00044109,120]
[330451482,1719421100853,-1643.72,0.00044109,120]
[330451483,1719421100891,-1744.08,0.00044109,120]
[330451484,1719421100927,-500.0,0.00044109,120]
[330451485,1719421100964,-1329.43,0.00044109,120]
[330451486,1719421101000,-500.0,0.00044109,120]
[330451487,1719421101038,-500.0,0.00044109,120]
[330451488,1719421101076,-2069.35,0.00044109,120]
[330451489,1719421101116,-566.99985839,0.00044109,120]
[330451490,1719421101158,-1673.5,0.00044109,120]
[330451491,1719421101195,-500.0,0.00044109,120]
[330451492,1719421101233,-500.0,0.00044109,120]
[330451493,1719421101270,-500.0,0.00044109,120]
[330451494,1719421101308,-500.0,0.00044109,120]
[330451495,1719421101344,-500.0,0.00044109,120]
[330451496,1719421101382,-500.0,0.00044109,120]
[330451497,1719421101421,-500.0,0.00044109,120]
[330451498,1719421101458,-288.16517739,0.00044109,120]
[330451499,1719421101496,-500.0,0.00044109,120]
[330451500,1719421101536,-609.39,0.00044109,120]
[330451501,1719421101573,-500.0,0.00044109,120]
[330451502,1719421101614,-1390.81,0.00044109,120]
[330451503,1719421101656,-2380.56,0.00044109,120]
[330451504,1719421101696,-552.40081158,0.00044109,120]
[330451505,1719421101737,-500.0,0.00044109,120]
[330451506,1719421101778,-155.08528198,0.00044109,120]
[330451507,1719421101820,-798.5,0.00044109,120]
[330451508,1719421101862,-500.0,0.00044109,120]
[330451509,1719421101902,-711.85,0.00044109,120]
[330451510,1719421101943,-500.0,0.00044109,120]
[330451511,1719421101983,-4710.37,0.00044109,120]
[330451512,1719421102026,-653.01,0.00044109,120]
[330451513,1719421102066,-500.0,0.00044109,120]
[330451514,1719421102106,-500.0,0.00044109,120]
[330451515,1719421102143,-1422.83,0.00044109,120]
[330451516,1719421102181,-2185.55,0.00044109,120]
[330451517,1719421102220,-513.74,0.00044109,120]
[330451518,1719421102259,-5000.0,0.00044109,120]
[330451519,1719421102296,-2049.48,0.00044109,120]
[330451520,1719421102334,-500.0,0.00044109,120]
[330451521,1719421102370,-500.0,0.00044109,120]
[330451522,1719421102408,-965.7,0.00044109,120]
[330451523,1719421102450,-638.36,0.00044109,120]
[330451524,1719421102487,-500.93506792,0.00044109,120]
[330451525,1719421102525,-500.0,0.00044109,120]
[330451526,1719421102561,-500.0,0.00044109,120]
[330451527,1719421102600,-4054.81,0.00044109,120]
[330451528,1719421102638,-500.0,0.00044109,120]
[330451529,1719421102676,-884.78,0.00044109,120]
[330451530,1719421102711,-500.0,0.00044109,120]
[330451531,1719421102758,-500.0,0.00044109,120]
[330451532,1719421102812,-500.0,0.00044109,120]
[330451533,1719421102860,-500.75038672,0.00044109,120]
[330451534,1719421102912,-1472.1,0.00044109,120]
[330451535,1719421102965,-620.99228932,0.00044109,120]
[330451536,1719421103012,-500.6538416,0.00044109,120]
[330451537,1719421103063,-500.0,0.00044109,120]
[330451538,1719421103106,-500.0,0.00044109,120]
[330451539,1719421103157,-500.0,0.00044109,120]
[330451540,1719421103208,-1011.87,0.00044109,120]
[330451541,1719421103250,-500.0,0.00044109,120]
[330451542,1719421103299,-500.0,0.00044109,120]
[330451543,1719421103345,-500.0,0.00044109,120]
[330451544,1719421103393,-1236.31,0.00044109,120]
[330451545,1719421103439,-1060.4,0.00044109,120]
[330451546,1719421103485,-500.0,0.00044109,120]
[330451547,1719421103531,-500.0,0.00044109,120]
[330451548,1719421103579,-3548.2,0.00044109,120]
[330451549,1719421103627,-500.0,0.00044109,120]
[330451550,1719421103674,-500.0,0.00044109,120]
[330451551,1719421103722,-1892.91,0.00044109,120]
[330451552,1719421103767,-500.0,0.00044109,120]
[330451553,1719421103813,-500.0,0.00044109,120]
[330451554,1719421103856,-1734.23,0.00044109,120]
[330451555,1719421103902,-500.0,0.00044109,120]
[330451556,1719421103946,-500.0,0.00044109,120]
[330451557,1719421103998,-725.8,0.00044109,120]
[330451558,1719421104049,-500.0,0.00044109,120]
[330451559,1719421104099,-500.0,0.00044109,120]
[330451560,1719421104146,-576.59,0.00044109,120]
[330451561,1719421104192,-500.0,0.00044109,120]
[330451562,1719421104240,-1099.6,0.00044109,120]
[330451563,1719421104287,-500.0,0.00044109,120]
[330451564,1719421104335,-917.69,0.00044109,120]
[330451565,1719421104381,-500.0,0.00044109,120]
[330451566,1719421104431,-2687.59,0.00044109,120]
[330451567,1719421104481,-2172.62,0.00044109,120]
[330451568,1719421104536,-1008.92,0.00044109,120]
[330451569,1719421104596,-391.75414653,0.00044109,120]
[330451570,1719421104643,-2029.78,0.00044109,120]
[330451571,1719421105780,-500.0,0.00044109,120]
[330451572,1719421105859,-500.0,0.00044109,120]
[330451573,1719421105893,-500.0,0.00044109,120]
[330451574,1719421105928,-500.0,0.00044109,120]
[330451575,1719421105962,-500.0,0.00044109,120]
[330451576,1719421105994,-1001.73,0.00044109,120]
[330451577,1719421106027,-2498.8,0.00044109,120]
[330451578,1719421106060,-623.31157967,0.00044109,120]
[330451579,1719421106092,-500.0,0.00044109,120]
[330451580,1719421106125,-500.0,0.00044109,120]
[330451581,1719421106157,-500.93464109,0.00044109,120]
[330451582,1719421106191,-500.0,0.00044109,120]
[330451583,1719421106224,-500.0,0.00044109,120]
[330451584,1719421106260,-699.07,0.00044109,120]
[330451585,1719421106292,-1212.02,0.00044109,120]
[330451586,1719421106324,-1655.56,0.00044109,120]
[330451587,1719421106360,-500.0,0.00044109,120]
[330451588,1719421106394,-699.16,0.00044109,120]
[330451589,1719421106427,-500.0,0.00044109,120]
[330451590,1719421106460,-500.0,0.00044109,120]
[330451591,1719421106493,-500.0,0.00044109,120]
[330451592,1719421106526,-2104.87,0.00044109,120]
[330451593,1719421106559,-500.0,0.00044109,120]
[330451594,1719421106592,-1059.19,0.00044109,120]
[330451595,1719421106627,-500.0,0.00044109,120]
[330451596,1719421106661,-544.45,0.00044109,120]
[330451597,1719421106696,-1214.98,0.00044109,120]
[330451598,1719421106731,-500.0,0.00044109,120]
[330451599,1719421106764,-500.0,0.00044109,120]
[330451600,1719421106800,-604.37,0.00044109,120]
[330451601,1719421106832,-501.82639368,0.00044109,120]
[330451602,1719421106865,-1084.11,0.00044109,120]
[330451603,1719421106897,-1537.04,0.00044109,120]
[330451604,1719421106929,-500.0,0.00044109,120]
[330451605,1719421106962,-500.0,0.00044109,120]
[330451606,1719421106993,-1662.19,0.00044109,120]
[330451607,1719421107024,-500.0,0.00044109,120]
[330451608,1719421107055,-1645.42,0.00044109,120]
[330451609,1719421107087,-1050.95,0.00044109,120]
[330451610,1719421107119,-500.0,0.00044109,120]
[330451611,1719421107150,-2611.47,0.00044109,120]
[330451612,1719421107182,-500.0,0.00044109,120]
[330451613,1719421107215,-501.50971977,0.00044109,120]
[330451614,1719421107247,-500.0,0.00044109,120]
[330451615,1719421107279,-500.0,0.00044109,120]
[330451616,1719421107314,-500.0,0.00044109,120]
[330451617,1719421107347,-500.0,0.00044109,120]
[330451618,1719421107378,-12838.55,0.00044109,120]
[330451619,1719421107411,-500.0,0.00044109,120]
[330451620,1719421107444,-521.94,0.00044109,120]
[330451621,1719421107478,-1593.59,0.00044109,120]
[330451622,1719421107511,-2357.93,0.00044109,120]
[330451623,1719421107544,-2689.1,0.00044109,120]
[330451624,1719421107578,-1959.42,0.00044109,120]
[330451625,1719421107612,-500.0,0.00044109,120]
[330451626,1719421107647,-500.0,0.00044109,120]
[330451627,1719421107685,-500.0,0.00044109,120]
[330451628,1719421107724,-1750.22,0.00044109,120]
[330451629,1719421107763,-518.58,0.00044109,120]
[330451630,1719421107804,-661.3,0.00044109,120]
[330451631,1719421107840,-1087.19,0.00044109,120]
[330451632,1719421107876,-500.0,0.00044109,120]
[330451633,1719421107913,-913.08,0.00044109,120]
[330451634,1719421107952,-25233.34,0.00044109,120]
[330451635,1719421107988,-500.0,0.00044109,120]
[330451636,1719421108024,-559.05,0.00044109,120]
[330451637,1719421108059,-551.22,0.00044109,120]
[330451638,1719421108093,-500.0,0.00044109,120]
[330451639,1719421108129,-1129.93,0.00044109,120]
[330451640,1719421108165,-2041.64,0.00044109,120]
[330451641,1719421108200,-1890.72,0.00044109,120]
[330451642,1719421108233,-500.0,0.00044109,120]
[330451643,1719421108264,-542.27,0.00044109,120]
[330451644,1719421108295,-500.0,0.00044109,120]
[330451645,1719421108327,-6405.25,0.00044109,120]
[330451646,1719421108360,-5151.41,0.00044109,120]
[330451647,1719421108392,-500.0,0.00044109,120]
[330451648,1719421108425,-500.0,0.00044109,120]
[330451649,1719421108462,-1211.63,0.00044109,120]
[330451650,1719421108496,-1157.43,0.00044109,120]
[330451651,1719421108529,-500.0,0.00044109,120]
[330451652,1719421108562,-500.0,0.00044109,120]
[330451653,1719421108597,-500.0,0.00044109,120]
[330451654,1719421108633,-500.0,0.00044109,120]
[330451655,1719421108668,-500.0,0.00044109,120]
[330451656,1719421108704,-2326.29,0.00044109,120]
[330451657,1719421108740,-1210.99,0.00044109,120]
[330451658,1719421108774,-500.0,0.00044109,120]
[330451659,1719421108808,-500.0,0.00044109,120]
[330451660,1719421108841,-2468.42,0.00044109,120]
[330451661,1719421108875,-500.0,0.00044109,120]
[330451662,1719421108908,-613.83,0.00044109,120]
[330451663,1719421108940,-1510.61,0.00044109,120]
[330451664,1719421108975,-500.0,0.00044109,120]
[330451665,1719421109010,-855.59,0.00044109,120]
[330451666,1719421109046,-878.66,0.00044109,120]
[330451667,1719421109082,-500.0,0.00044109,120]
[330451668,1719421109116,-1514.18,0.00044109,120]
[330451669,1719421109150,-500.0,0.00044109,120]
[330451670,1719421109185,-878.65,0.00044109,120]
[330451671,1719421109218,-500.0,0.00044109,120]
[330451672,1719421109469,-500.0,0.00044109,120]
[330451673,1719421109505,-568.5,0.00044109,120]
[330451674,1719421109541,-1186.88,0.00044109,120]
[330451675,1719421109576,-1861.96,0.00044109,120]
[330451676,1719421109610,-500.0,0.00044109,120]
[330451677,1719421109647,-4396.48,0.00044109,120]
[330451678,1719421109682,-500.0,0.00044109,120]
[330451679,1719421109716,-2813.81,0.00044109,120]
[330451680,1719421109755,-886.69,0.00044109,120]
[330451681,1719421109792,-1151.18,0.00044109,120]
[330451682,1719421109828,-500.0,0.00044109,120]
[330451683,1719421109862,-1975.79,0.00044109,120]
[330451684,1719421109898,-1235.1,0.00044109,120]
[330451685,1719421109933,-1847.37,0.00044109,120]
[330451686,1719421109967,-4678.92,0.00044109,120]
[330451687,1719421110000,-1000.0,0.00044109,120]
[330451688,1719421110034,-1804.38,0.00044109,120]
[330451689,1719421110068,-646.6,0.00044109,120]
[330451690,1719421110102,-500.0,0.00044109,120]
[330451691,1719421110136,-500.0,0.00044109,120]
[330451692,1719421110170,-500.0,0.00044109,120]
[330451693,1719421110204,-8076.29,0.00044109,120]
[330451694,1719421110239,-810.06,0.00044109,120]
[330451695,1719421110274,-2216.4,0.00044109,120]
[330451696,1719421110308,-500.0,0.00044109,120]
[330451697,1719421110342,-1357.91,0.00044109,120]
[330451698,1719421110375,-500.0,0.00044109,120]
[330451699,1719421110410,-500.0,0.00044109,120]
[330451700,1719421110444,-3446.64,0.00044109,120]
[330451701,1719421110480,-500.0,0.00044109,120]
[330451702,1719421110515,-500.0,0.00044109,120]
[330451703,1719421110550,-2762.39,0.00044109,120]
[330451704,1719421110584,-387.1410137,0.00044109,120]
[330451705,1719421110621,-500.0,0.00044109,120]
[330451706,1719421110657,-1946.47,0.00044109,120]
[330451707,1719421110693,-500.0,0.00044109,120]
[330451708,1719421110733,-500.0,0.00044109,120]
[330451709,1719421110769,-1527.44,0.00044109,120]
[330451710,1719421110804,-534.98278944,0.00044109,120]
[330451711,1719421110838,-500.0,0.00044109,120]
[330451712,1719421110872,-500.0,0.00044109,120]
[330451713,1719421110906,-500.0,0.00044109,120]
[330451714,1719421110940,-1500.0,0.00044109,120]
[330451715,1719421110976,-1620.11,0.00044109,120]
[330451716,1719421111008,-500.0,0.00044109,120]
[330451717,1719421111040,-500.0,0.00044109,120]
[330451718,1719421111074,-500.0,0.00044109,120]
[330451719,1719421111108,-1061.6,0.00044109,120]
[330451720,1719421111140,-624.7,0.00044109,120]
[330451721,1719421111173,-936.82,0.00044109,120]
[330451722,1719421111206,-500.0,0.00044109,120]
[330451723,1719421111240,-1848.08,0.00044109,120]
[330451724,1719421111275,-500.0,0.00044109,120]
[330451725,1719421111311,-2411.38,0.00044109,120]
[330451726,1719421111346,-500.0,0.00044109,120]
[330451727,1719421111381,-500.0,0.00044109,120]
[330451728,1719421111415,-500.0,0.00044109,120]
[330451729,1719421111449,-500.0,0.00044109,120]
[330451730,1719421111483,-500.0,0.00044109,120]
[330451731,1719421111517,-2063.39,0.00044109,120]
[330451732,1719421111550,-2500.58,0.00044109,120]
[330451733,1719421111583,-500.0,0.00044109,120]
[330451734,1719421111616,-3206.8,0.00044109,120]
[330451735,1719421111650,-3093.54,0.00044109,120]
[330451736,1719421111684,-882.93,0.00044109,120]
[330451737,1719421111718,-3836.22,0.00044109,120]
[330451738,1719421111756,-338.57828046,0.00044109,120]
[330451739,1719421111789,-500.0,0.00044109,120]
[330451740,1719421111820,-500.0,0.00044109,120]
[330451741,1719421111854,-1282.7,0.00044109,120]
[330451742,1719421111886,-500.0,0.00044109,120]
[330451743,1719421111919,-500.0,0.00044109,120]
[330451744,1719421111952,-500.0,0.00044109,120]
[330451745,1719421111984,-957.59,0.00044109,120]
[330451746,1719421112017,-3991.63,0.00044109,120]
[330451747,1719421112048,-1393.84,0.00044109,120]
[330451748,1719421112082,-500.0,0.00044109,120]
[330451749,1719421112116,-500.0,0.00044109,120]
[330451750,1719421112150,-659.41,0.00044109,120]
[330451751,1719421112184,-1588.57,0.00044109,120]
[330451752,1719421112218,-553.92,0.00044109,120]
[330451753,1719421112251,-1577.74,0.00044109,120]
[330451754,1719421112285,-2647.31,0.00044109,120]
[330451755,1719421112324,-628.61,0.00044109,120]
[330451756,1719421112359,-500.0,0.00044109,120]
[330451757,1719421112394,-500.0,0.00044109,120]
[330451758,1719421112426,-1631.48,0.00044109,120]
[330451759,1719421112460,-500.0,0.00044109,120]
[330451760,1719421112494,-500.0,0.00044109,120]
[330451761,1719421112528,-1380.52,0.00044109,120]
[330451762,1719421112562,-736.66,0.00044109,120]
[330451763,1719421112596,-500.0,0.00044109,120]
[330451764,1719421112632,-628.0,0.00044109,120]
[330451765,1719421112665,-13038.48,0.00044109,120]
[330451766,1719421112695,-500.0,0.00044109,120]
[330451767,1719421112730,-196.20388213,0.00044109,120]
[330451768,1719421112763,-500.0,0.00044109,120]
[330451769,1719421112794,-500.0,0.00044109,120]
[330451770,1719421112828,-500.0,0.00044109,120]
[330451771,1719421112861,-500.0,0.00044109,120]
[330451772,1719421112894,-3556.53,0.00044109,120]
[330451773,1719421112926,-1840.55,0.00044109,120]
[330451774,1719421112957,-977.19,0.00044109,120]
[330451775,1719421112989,-1393.41,0.00044109,120]
[330451776,1719421113021,-500.0,0.00044109,120]
[330451777,1719421113054,-500.0,0.00044109,120]
[330451778,1719421113308,-656.83,0.00044109,120]
[330451779,1719421113340,-500.0,0.00044109,120]
[330451780,1719421113371,-652.61,0.00044109,120]
[330451781,1719421113403,-500.0,0.00044109,120]
[330451782,1719421113434,-500.0,0.00044109,120]
[330451783,1719421113465,-500.0,0.00044109,120]
[330451784,1719421113498,-500.0,0.00044109,120]
[330451785,1719421113537,-1562.82,0.00044109,120]
[330451786,1719421113567,-723.91,0.00044109,120]
[330451787,1719421113598,-563.5,0.00044109,120]
[330451788,1719421113631,-5977.35,0.00044109,120]
[330451789,1719421113662,-500.0,0.00044109,120]
[330451790,1719421113694,-500.0,0.00044109,120]
[330451791,1719421113728,-868.82,0.00044109,120]
[330451792,1719421113760,-656.52,0.00044109,120]
[330451793,1719421113794,-504.04,0.00044109,120]
[330451794,1719421113829,-4220.21,0.00044109,120]
[330451795,1719421113861,-18533.5,0.00044109,120]
[330451796,1719421113893,-1076.75,0.00044109,120]
[330451797,1719421113925,-500.0,0.00044109,120]
[330451798,1719421113957,-1357.14,0.00044109,120]
[330451799,1719421113992,-500.0,0.00044109,120]
[330451800,1719421114027,-500.0,0.00044109,120]
[330451801,1719421114064,-14889.68,0.00044109,120]
[330451802,1719421114101,-4099.7,0.00044109,120]
[330451803,1719421114134,-560.48,0.00044109,120]
[330451804,1719421114168,-335.75927372,0.00044109,120]
[330451805,1719421114202,-1238.17,0.00044109,120]
[330451806,1719421114238,-1356.52,0.00044109,120]
[330451807,1719421114272,-500.0,0.00044109,120]
[330451808,1719421114307,-500.0,0.00044109,120]
[330451809,1719421114340,-1413.83,0.00044109,120]
[330451810,1719421114374,-500.0,0.00044109,90]
[330451811,1719421114407,-500.0,0.00044109,120]
[330451812,1719421114441,-500.0,0.00044109,120]
[330451813,1719421114476,-1870.01,0.00044109,120]
[330451814,1719421114510,-2873.59,0.00044109,120]
[330451815,1719421114546,-500.0,0.00044109,30]
[330451816,1719421114582,-728.12,0.00044109,120]
[330451817,1719421114620,-500.0,0.00044109,120]
[330451818,1719421114657,-1850.62,0.00044109,120]
[330451819,1719421114696,-1484.8,0.00044109,120]
[330451820,1719421114734,-2000.27,0.00044109,120]
[330451821,1719421114772,-1535.2,0.00044109,120]
[330451822,1719421114810,-4270.63,0.00044109,120]
[330451823,1719421114845,-500.0,0.00044109,120]
[330451824,1719421114882,-627.47,0.00044109,120]
[330451825,1719421114917,-500.0,0.00044109,120]
[330451826,1719421114951,-1059.38,0.00044109,120]
[330451827,1719421114984,-500.0,0.00044109,120]
[330451828,1719421115019,-500.0,0.00044109,120]
[330451829,1719421115052,-1528.43,0.00044109,120]
[330451830,1719421115085,-508.26,0.00044109,120]
[330451831,1719421115118,-500.0,0.00044109,120]
[330451832,1719421115152,-673.76,0.00044109,120]
[330451833,1719421115187,-2226.01,0.00044109,120]
[330451834,1719421115219,-500.0,0.00044109,120]
[330451835,1719421115254,-500.0,0.00044109,120]
[330451836,1719421115287,-500.0,0.00044109,120]
[330451837,1719421115319,-601.86,0.00044109,120]
[330451838,1719421115351,-500.0,0.00044109,120]
[330451839,1719421115383,-500.0,0.00044109,120]
[330451840,1719421115419,-552.6,0.00044109,120]
[330451841,1719421115456,-2000.0,0.00044109,120]
[330451842,1719421115490,-602.20782922,0.00044109,120]
[330451843,1719421115521,-156.45304044,0.00044109,120]
[330451844,1719421115555,-500.0,0.00044109,120]
[330451845,1719421115589,-4665.92,0.00044109,120]
[330451846,1719421115625,-2142.38,0.00044109,120]
[330451847,1719421115660,-500.0,0.00044109,120]
[330451848,1719421115694,-500.0,0.00044109,120]
[330451849,1719421115730,-500.0,0.00044109,120]
[330451850,1719421115763,-500.0,0.00044109,120]
[330451851,1719421115797,-500.0,0.00044109,120]